bitfinex/quotes_ETHUSD_20250411
["timestamp","ask_amount","ask_price","bid_price","bid_amount"]
[1744350050477,6.45959,1548.1,1547.8,7.26736]
[1744350050652,6.45959,1548.1,1547.9,0.59390266]
[1744350051066,6.45959,1548.1,1547.8,7.26736]
[1744350051449,6.45959,1548.1,1547.9,0.59390266]
[1744350052176,6.45994,1548.0,1547.9,0.59390266]
[1744350052358,7.751893,1548.0,1547.9,0.59390266]
[1744350052563,6.46055,1547.9,1547.6,0.8068]
[1744350052877,12.92116,1547.9,1547.6,0.8068]
[1744350053077,6.46055,1547.9,1547.6,0.8068]
[1744350053277,13.73706,1548.0,1547.6,13.72986]
[1744350053579,6.45962,1548.1,1547.6,2.78578522]
[1744350053782,13.74896,1548.2,1547.9,0.8068]
[1744350054536,9.55862,1548.4,1548.1,6.45928]
[1744350054537,0.9168,1548.4,1548.1,6.45928]
[1744350054777,13.84707,1548.4,1548.1,6.45928]
[1744350055205,13.84707,1548.4,1548.0,6.4599]
[1744350055382,13.84707,1548.4,1548.0,12.91964]
[1744350055383,20.3057,1548.4,1548.0,12.91964]
[1744350055682,13.84707,1548.4,1548.0,14.292284]
[1744350055841,6.45871,1548.3,1548.0,7.832384]
[1744350056571,6.45871,1548.3,1548.0,14.292134]
[1744350056871,13.84707,1548.4,1548.0,14.292134]
[1744350057076,13.03027,1548.4,1548.1,0.76]
[1744350057250,13.03027,1548.4,1548.1,2.2652134]
[1744350057449,13.03027,1548.4,1548.1,8.7247234]
[1744350058271,6.572,1548.4,1548.1,8.7245934]
[1744350058586,6.572,1548.4,1548.1,15.1839134]
[1744350058770,6.572,1548.4,1548.1,7.21932]
[1744350058974,6.4587,1548.3,1548.1,0.76]
[1744350059176,13.03056,1548.4,1548.1,0.76]
[1744350059794,6.572,1548.4,1548.1,7.2195]
[1744350059960,6.572,1548.4,1548.1,14.40095]
[1744350060482,13.03032,1548.4,1548.1,1.48195]
[1744350060680,6.45883,1548.3,1547.9,6.46015]
[1744350060996,6.45962,1548.1,1547.8,6.8199922]
[1744350061199,6.64261988,1548.3,1547.8,6.8199922]
[1744350061356,6.46036,1547.9,1547.6,0.76]
[1744350061560,6.46087,1547.8,1547.5,7.22184]
[1744350061788,6.46036,1547.9,1547.5,15.81417756]
[1744350061975,6.46036,1547.9,1547.5,9.35231756]
[1744350062184,6.46093,1547.8,1547.5,9.35231756]
[1744350062394,6.46136,1547.7,1547.5,2.13047756]
[1744350062572,6.46136,1547.7,1547.4,8.13821925]
[1744350062999,6.46169,1547.6,1547.4,0.91579925]
[1744350063161,6.46169,1547.6,1547.3,6.8199922]
[1744350063503,6.4612,1547.7,1547.3,0.76]
[1744350063659,6.46203,1547.5,1547.2,0.76]
[1744350063858,6.46265,1547.4,1547.2,0.76]
[1744350065091,6.46265,1547.4,1547.1,6.46361]
[1744350065294,6.46265,1547.4,1547.0,7.22393]
[1744350065496,7.2333,1547.6,1547.0,0.76]
[1744350065497,7.22545,1547.3,1547.0,0.76]
[1744350065902,13.68869,1547.3,1547.0,0.76]
[1744350066265,13.68869,1547.3,1547.1,0.59588822]
[1744350066471,7.22545,1547.3,1547.1,0.59588822]
[1744350067597,13.68752,1547.4,1547.1,0.59588822]
[1744350069801,6.46291,1547.3,1547.1,0.59588822]
[1744350070294,6.46227,1547.5,1547.1,7.84144704]
[1744350070500,6.46301,1547.3,1547.1,1.37788704]
[1744350070656,6.46328,1547.2,1547.1,0.59588822]
[1744350070860,0.7623,1547.0,1546.7,0.33646105]
[1744350071084,6.46579,1546.6,1546.5,6.21785235]
[1744350072474,6.46579,1546.6,1546.2,7.2274]
[1744350072475,12.93194,1546.6,1546.2,7.2274]
[1744350072698,6.46579,1546.6,1546.2,15.064195]
[1744350072871,6.46502,1546.8,1546.4,6.4664]
[1744350073072,7.24524,1546.9,1546.5,7.25021]
[1744350074711,13.71003,1546.9,1546.5,7.25021]
[1744350075016,13.71003,1546.9,1546.5,0.784]
[1744350075017,6.4652,1546.8,1546.5,0.784]
[1744350075578,12.93046,1546.8,1546.5,0.784]
[1744350076180,6.46585,1546.6,1546.3,7.25102]
[1744350076379,12.93133,1546.7,1546.3,7.25102]
[1744350076580,12.93133,1546.7,1546.3,13.71789]
[1744350076581,6.46555,1546.7,1546.3,13.71789]
[1744350076883,6.46498,1546.8,1546.4,6.46648]
[1744350077090,6.46498,1546.8,1546.5,6.4662]
[1744350077295,15.44728312,1546.9,1546.5,6.4662]
[1744350077480,6.465,1546.8,1546.5,6.4662]
[1744350077693,12.9302,1546.8,1546.4,6.46648]
[1744350077894,6.465,1546.8,1546.4,14.45559495]
[1744350078201,6.465,1546.8,1546.4,7.98910495]
[1744350078409,12.93137,1546.7,1546.3,7.25093]
[1744350078594,6.46566,1546.7,1546.3,13.71779]
[1744350078919,6.46566,1546.7,1546.3,7.25086]
[1744350079219,12.93136,1546.7,1546.3,7.25086]
[1744350079903,13.71268,1546.6,1546.3,0.784]
[1744350080582,7.24653,1546.6,1546.3,0.784]
[1744350080782,7.24567,1546.8,1546.4,6.46631]
[1744350081014,8.20194312,1546.9,1546.5,6.46593]
[1744350081233,8.20194312,1546.9,1546.6,1.38497298]
[1744350081522,14.66674312,1546.9,1546.6,1.38497298]
[1744350081824,6.46497,1546.8,1546.6,1.38497298]
[1744350082028,6.46497,1546.8,1546.6,0.60097298]
[1744350082205,12.9303,1546.8,1546.5,0.784]
[1744350082391,12.9303,1546.8,1546.6,0.60347932]
[1744350082591,14.39706431,1546.8,1546.6,0.60347932]
[1744350084111,6.46537,1546.7,1546.6,0.60347932]
[1744350084318,13.71174,1546.7,1546.3,7.25096]
[1744350084518,13.71174,1546.7,1546.6,0.60347932]
[1744350085128,13.71174,1546.7,1546.3,7.25096]
[1744350085425,13.71174,1546.7,1546.3,7.25089]
[1744350085426,13.71179,1546.7,1546.3,7.25089]
[1744350085731,7.24607,1546.7,1546.4,0.60411238]
[1744350086033,7.93175431,1546.8,1546.5,1.38779583]
[1744350086034,6.46499,1546.8,1546.5,1.38779583]
[1744350086237,6.473,1546.7,1546.5,7.85400583]
[1744350087233,6.4646,1546.9,1546.6,6.46579]
[1744350087418,6.4646,1546.9,1546.7,0.60316285]
[1744350087620,6.4646,1546.9,1546.6,6.46579]
[1744350087795,6.4646,1546.9,1546.7,0.60316285]
[1744350087995,12.92934,1546.9,1546.5,7.25004]
[1744350088292,7.29061,1546.7,1546.6,0.60347932]
[1744350088497,7.29018,1546.8,1546.6,0.60347932]
[1744350088737,7.29018,1546.8,1546.4,12.93297]
[1744350088738,13.7554,1546.8,1546.4,6.46643]
[1744350088914,6.46548,1546.7,1546.3,15.29366168]
[1744350089428,6.46548,1546.7,1546.4,6.46659]
[1744350089739,8.66572,1546.8,1546.4,12.93308]
[1744350090197,15.1309,1546.8,1546.4,6.46649]
[1744350091530,6.46541,1546.7,1546.4,6.46649]
[1744350091927,12.93099,1546.7,1546.3,15.29368168]
[1744350092132,6.46541,1546.7,1546.3,15.29368168]
[1744350092311,6.46541,1546.7,1546.4,7.99595817]
[1744350092866,6.46541,1546.7,1546.3,0.8173]
[1744350093070,6.46519,1546.8,1546.5,0.77]
[1744350093226,10.23517,1547.0,1546.6,6.46566]
[1744350093429,3.771,1547.0,1546.7,6.46537]
[1744350093627,3.0,1547.0,1546.8,0.77]
[1744350093872,61.88,1547.1,1546.8,7.2349]
[1744350094866,68.33244548,1547.1,1546.8,0.77]
[1744350095165,6.46419,1547.0,1546.8,0.77]
[1744350095557,6.46419,1547.0,1546.9,0.60232086]
[1744350095866,74.79655548,1547.1,1546.9,0.60232086]
[1744350096633,68.34411,1547.1,1546.9,0.60232086]
[1744350097057,68.34394,1547.1,1546.9,0.60232086]
[1744350097264,6.46412,1547.0,1546.9,0.60232086]
[1744350097880,6.46412,1547.0,1546.9,0.60189596]
[1744350098286,6.46412,1547.0,1546.7,7.23534]
[1744350098450,68.34394,1547.1,1546.9,0.60219942]
[1744350098794,6.473,1547.1,1546.8,6.46469]
[1744350099092,6.473,1547.1,1546.9,7.06680304]
[1744350099586,6.473,1547.1,1546.9,6.4643]
[1744350099886,6.473,1547.1,1546.9,7.834218]
[1744350100254,6.473,1547.1,1547.0,0.60218668]
[1744350102459,13.69787,1547.2,1547.0,0.60218668]
[1744350102761,0.771,1547.2,1547.0,0.60218668]
[1744350102979,0.771,1547.2,1546.9,6.46451]
[1744350103180,0.771,1547.2,1547.1,0.60174901]
[1744350103354,0.771,1547.2,1546.9,7.83444]
[1744350103355,0.771,1547.2,1547.0,0.60206532]
[1744350103568,0.771,1547.2,1547.1,0.60156699]
[1744350103765,7.23428,1547.2,1547.1,0.60156699]
[1744350103997,7.23428,1547.2,1546.5,9.8333524]
[1744350103998,6.46431,1547.0,1546.7,0.7984]
[1744350104365,6.46431,1547.0,1546.8,0.6018964]
[1744350105090,12.93708,1547.1,1546.8,0.6018964]
[1744350105285,12.9369,1547.1,1546.8,0.6018964]
[1744350105495,20.7716,1547.1,1546.8,0.6018964]
[1744350106322,7.22291,1547.0,1546.8,0.6018964]
[1744350106787,7.22291,1547.0,1546.6,6.46565]
[1744350106788,13.68723,1547.0,1546.6,6.46565]
[1744350106990,13.68723,1547.0,1546.9,0.60133714]
[1744350106991,7.22291,1547.0,1546.9,0.60133714]
[1744350107190,7.22291,1547.0,1546.7,0.60353159]
[1744350107391,7.22291,1547.0,1546.9,0.60066939]
[1744350107590,7.22291,1547.0,1546.8,0.60098574]
[1744350107797,7.22291,1547.0,1546.9,0.60073009]
[1744350108011,7.22291,1547.0,1546.6,12.93124]
[1744350108220,7.22291,1547.0,1546.6,14.304204]
[1744350108428,7.22291,1547.0,1546.7,0.60142355]
[1744350108592,7.22291,1547.0,1546.6,14.304204]
[1744350108792,0.7586,1547.0,1546.6,14.304204]
[1744350108989,0.7586,1547.0,1546.7,1.20473709]
[1744350109615,0.7586,1547.0,1546.7,0.60148426]
[1744350109815,0.7586,1547.0,1546.6,14.304204]
[1744350110002,0.7586,1547.0,1546.7,0.60160568]
[1744350110204,0.7586,1547.0,1546.6,14.304204]
[1744350110406,0.7586,1547.0,1546.7,7.67030133]
[1744350110932,0.7586,1547.0,1546.7,7.06697568]
[1744350113041,0.7586,1547.0,1546.7,0.60160568]
[1744350113209,8.729555,1547.0,1546.6,6.46559]
[1744350113415,2.265215,1547.0,1546.5,0.7984]
[1744350113609,12.93018,1546.8,1546.6,0.60204357]
[1744350113910,6.46537,1546.7,1546.6,0.60204357]
[1744350114319,6.46537,1546.7,1546.4,0.7984]
[1744350114509,6.46537,1546.7,1546.6,0.60070791]
[1744350114709,6.46537,1546.7,1546.5,0.60102432]
[1744350114904,7.834262,1546.7,1546.6,0.60070791]
[1744350115110,15.063862,1546.7,1546.6,0.60070791]
[1744350115327,6.46606,1546.6,1546.3,6.21785235]
[1744350115536,15.063922,1546.7,1546.6,0.60152718]
[1744350115707,15.063922,1546.7,1546.3,6.46701]
[1744350115915,1.5063922,1546.6,1546.3,6.46701]
[1744350116225,15.063922,1546.7,1546.3,6.46691]
[1744350116546,15.063922,1546.7,1546.3,6.4669]
[1744350117307,21.529532,1546.7,1546.3,6.4669]
[1744350117841,15.063922,1546.7,1546.3,6.4669]
[1744350118239,8.598492,1546.7,1546.4,6.46653]
[1744350119214,8.598492,1546.7,1546.4,12.93296]
[1744350119415,8.598492,1546.7,1546.4,6.46643]
[1744350119622,7.839892,1546.7,1546.4,7.23383]
[1744350119946,1.368892,1546.7,1546.4,7.23383]
[1744350122453,1.368892,1546.7,1546.3,6.46699]
[1744350122454,6.46705,1546.3,1546.0,6.21785235]
[1744350122651,6.467,1546.4,1546.0,13.43732235]
[1744350122827,7.27604,1546.3,1546.0,6.96915235]
[1744350123022,7.27592,1546.3,1546.0,6.21785235]
[1744350123946,0.8088,1546.3,1546.0,6.21785235]
[1744350125237,0.8088,1546.3,1545.9,6.4685]
[1744350125558,6.471,1546.4,1546.0,0.7513]
[1744350125855,6.471,1546.4,1546.2,7.21864]
[1744350126260,6.471,1546.4,1546.3,0.60528799]
[1744350127156,6.471,1546.4,1546.1,13.68678]
[1744350127358,6.471,1546.4,1546.3,0.60501463]
[1744350127656,1.368892,1546.7,1546.3,7.21831]
[1744350127858,7.2808,1546.8,1546.4,6.46641]
[1744350128066,7.2808,1546.8,1546.5,6.46607]
[1744350128366,7.2808,1546.8,1546.5,7.07087669]
[1744350132336,6.472,1546.8,1546.6,7.22792]
[1744350132541,6.472,1546.8,1546.7,7.188162]
[1744350132745,6.472,1546.8,1546.7,7.79148586]
[1744350134378,6.472,1546.8,1546.7,8.39373503]
[1744350134840,12.92852,1547.0,1546.7,1.32611586]
[1744350135042,6.46413,1547.0,1546.7,0.60332386]
[1744350135643,6.46413,1547.0,1546.6,13.69351]
[1744350135644,6.46413,1547.0,1546.8,0.60222536]
[1744350135983,74.83878,1547.1,1546.7,6.46532]
[1744350136274,74.8388,1547.1,1546.8,0.60222536]
[1744350136579,12.93491,1547.3,1546.8,0.60222536]
[1744350136883,6.472,1547.3,1547.1,6.46349]
[1744350137180,6.46122,1547.7,1547.3,6.46283]
[1744350137570,68.37584,1547.8,1547.4,0.59847804]
[1744350137744,68.37584,1547.8,1547.4,6.46237]
[1744350137943,68.37584,1547.8,1547.5,0.59767707]
[1744350138162,6.45244548,1547.7,1547.5,0.59767707]
[1744350139258,6.45244548,1547.7,1547.3,12.92539]
[1744350139757,6.45244548,1547.7,1547.4,0.59811427]
[1744350139955,6.45244548,1547.7,1547.3,12.92539]
[1744350140281,6.45244548,1547.7,1547.4,0.5981749]
[1744350140462,0.64524455,1547.6,1547.4,7.0605549]
[1744350140669,0.64524455,1547.6,1547.5,0.59785893]
[1744350141591,6.45244548,1547.7,1547.5,0.59785893]
[1744350142658,6.45244548,1547.7,1547.4,6.46245]
[1744350142959,12.91364548,1547.7,1547.5,0.59791955]
[1744350143159,6.46161,1547.6,1547.2,13.28544]
[1744350143364,7.866291,1547.5,1547.2,6.06]
[1744350143597,6.46246,1547.4,1547.2,6.06]
[1744350143889,7.866291,1547.5,1547.2,6.06]
[1744350144051,14.328621,1547.5,1547.1,6.46365]
[1744350144251,14.328551,1547.5,1547.1,6.46365]
[1744350144490,1.4328551,1547.4,1547.1,6.46365]
[1744350144865,7.8953251,1547.4,1547.0,7.2264]
[1744350145178,14.3623251,1547.4,1547.0,13.6905]
[1744350145901,7.8998551,1547.4,1547.1,6.46368]
[1744350146202,7.8998551,1547.4,1547.2,6.46327]
[1744350146496,6.467,1547.4,1547.2,6.46327]
[1744350147384,6.467,1547.4,1547.1,12.92712]
[1744350147764,6.467,1547.4,1547.1,6.46355]
[1744350148401,12.92946,1547.4,1547.1,6.46355]
[1744350148701,6.467,1547.4,1547.1,6.46355]
[1744350148895,7.17053431,1547.4,1547.1,6.46355]
[1744350149268,7.17053431,1547.4,1547.1,12.92707]
[1744350150900,7.17053431,1547.4,1547.2,6.46324]
[1744350151099,7.17053431,1547.4,1547.2,12.92637]
[1744350152288,6.45244548,1547.7,1547.4,6.4622]
[1744350152489,6.45244548,1547.7,1547.4,12.92445]
[1744350152702,6.45244548,1547.7,1547.5,6.46196]
[1744350152999,6.45244548,1547.7,1547.5,12.92381]
[1744350153406,62.7118,1547.8,1547.5,12.92381]
[1744350153574,69.17265,1547.8,1547.6,0.59456768]
[1744350153974,6.46043,1547.9,1547.6,0.59456768]
[1744350153975,1.27731797,1548.1,1547.7,0.7611]
[1744350154216,0.8028,1548.1,1547.7,0.7611]
[1744350154402,7.26155,1548.3,1547.9,12.92035]
[1744350154586,0.726155,1548.2,1547.9,12.92035]
[1744350154786,0.726155,1548.2,1548.0,0.5952548]
[1744350155480,13.644895,1548.2,1548.0,0.5952548]
[1744350155672,13.644895,1548.2,1547.8,6.46072]
[1744350155903,13.644895,1548.2,1548.1,0.59554506]
[1744350156108,13.644895,1548.2,1547.7,13.28229]
[1744350156109,0.8028,1548.0,1547.7,7.22229]
[1744350156277,7.26275,1548.0,1547.6,12.92316]
[1744350156683,7.26275,1548.0,1547.6,12.92301]
[1744350157394,7.26275,1548.0,1547.6,6.46143]
[1744350157909,6.46052,1547.9,1547.6,6.46143]
[1744350159009,7.26275,1548.0,1547.6,12.92287]
[1744350159218,9.41793295,1548.0,1547.6,12.92287]
[1744350159377,15.87818295,1548.0,1547.6,6.46143]
[1744350159678,9.41793295,1548.0,1547.6,12.92291]
[1744350159878,15.87811295,1548.0,1547.6,6.46143]
[1744350160214,9.41793295,1548.0,1547.6,12.92286]
[1744350160401,9.41793295,1548.0,1547.6,12.92287]
[1744350160928,9.41793295,1548.0,1547.7,0.59668742]
[1744350161127,9.41793295,1548.0,1547.6,12.92287]
[1744350161128,0.9417933,1547.9,1547.6,12.92287]
[1744350161326,9.41793295,1548.0,1547.7,0.59680873]
[1744350161506,9.41793295,1548.0,1547.6,12.92287]
[1744350161830,9.41793295,1548.0,1547.7,0.59686939]
[1744350162032,9.41793295,1548.0,1547.7,6.46111]
[1744350162195,9.41793295,1548.0,1547.8,0.59661404]
[1744350162726,15.87808295,1548.0,1547.8,0.59661404]
[1744350163318,15.87808295,1548.0,1547.9,0.59617677]
[1744350163701,15.87808295,1548.0,1547.4,6.06]
[1744350163702,2.95798295,1548.0,1547.4,6.06]
[1744350163906,6.46142,1547.7,1547.3,13.70122]
[1744350164120,6.46142,1547.7,1547.3,13.70117]
[1744350164428,6.46142,1547.7,1547.4,7.05965098]
[1744350164761,6.46142,1547.7,1547.4,0.59721098]
[1744350165030,6.46166,1547.6,1547.3,0.7759]
[1744350165329,6.46166,1547.6,1547.4,0.5983331]
[1744350165627,6.46166,1547.6,1547.2,6.46322]
[1744350165628,0.8024,1547.5,1547.2,6.46322]
[1744350168418,0.8024,1547.5,1547.3,0.60143768]
[1744350168821,7.26447,1547.5,1547.3,0.60143768]
[1744350169350,6.46245,1547.4,1547.3,0.60143768]
[1744350169535,6.46245,1547.4,1547.0,6.46394]
[1744350169738,6.46245,1547.4,1547.0,12.92786]
[1744350169922,6.46245,1547.4,1547.1,7.06517048]
[1744350170252,13.72673,1547.5,1547.1,7.06510048]
[1744350170433,8.8310119,1547.5,1547.1,12.92704]
[1744350170641,7.26447,1547.5,1547.2,6.46327]
[1744350170938,6.4626,1547.4,1547.0,12.92798]
[1744350171128,6.4626,1547.4,1547.1,0.59870902]
[1744350171541,12.92527,1547.4,1547.1,0.59870902]
[1744350171852,7.26568,1547.2,1547.1,0.59870902]
[1744350172147,13.72929,1547.2,1547.1,0.59816276]
[1744350172454,0.8024,1547.2,1546.9,6.46437]
[1744350172756,7.26571,1547.2,1547.1,0.59816276]
[1744350173249,7.26571,1547.2,1547.1,0.59810206]
[1744350173619,7.26571,1547.2,1546.9,6.46437]
[1744350173820,7.26571,1547.2,1547.1,0.59798067]
[1744350174021,7.26571,1547.2,1547.0,0.59829691]
[1744350174281,12.92495,1547.3,1547.0,2.0804636]
[1744350174654,12.92495,1547.3,1547.0,8.5444536]
[1744350175245,12.92495,1547.3,1547.0,7.7685536]
[1744350177869,12.92495,1547.3,1547.0,1.3045636]
[1744350179242,6.462,1547.3,1547.0,14.2325236]
[1744350179450,1.938689,1547.6,1547.2,0.786]
[1744350179451,7.26545,1547.6,1547.2,0.786]
[1744350179629,6.4621,1547.5,1547.2,0.786]
[1744350179833,6.4621,1547.5,1547.3,0.59850145]
[1744350179834,7.26611,1547.4,1547.3,0.59850145]
[1744350180230,7.26611,1547.4,1546.7,15.81437853]
[1744350180231,6.46475,1546.9,1546.7,0.786]
[1744350180433,0.8036,1547.0,1546.7,0.786]
[1744350180644,0.8036,1547.1,1546.6,6.06]
[1744350180950,7.26749,1547.1,1546.7,7.85705]
[1744350181664,7.26749,1547.1,1546.8,6.46481]
[1744350182477,0.8036,1547.1,1546.8,12.92955]
[1744350182677,13.7299,1547.2,1546.8,12.92955]
[1744350183040,20.19342,1547.2,1546.8,6.46474]
[1744350183271,22.56101402,1547.2,1546.8,6.46474]
[1744350184292,16.09749402,1547.2,1546.8,6.46474]
[1744350184499,22.56118402,1547.2,1546.8,6.46474]
[1744350184774,6.46385,1547.1,1546.8,6.46474]
[1744350185593,7.2666,1547.2,1546.9,6.46453]
[1744350185746,13.72989,1547.2,1546.8,6.46474]
[1744350186086,13.72989,1547.2,1546.8,13.715234]
[1744350186913,13.72989,1547.2,1546.9,0.60085515]
[1744350187615,20.19356,1547.2,1546.9,0.60085515]
[1744350188138,6.46412,1547.0,1546.9,0.60085515]
[1744350188620,6.464,1547.1,1546.9,0.60109792]
[1744350188774,6.463,1547.2,1547.0,0.786]
[1744350189070,6.463,1547.2,1547.1,0.6004653]
[1744350189509,3.0,1547.4,1547.1,13.5277053]
[1744350189692,13.7297,1547.5,1547.1,14.95907583]
[1744350189693,12.9261,1547.5,1547.1,14.95907583]
[1744350189897,12.9261,1547.5,1547.2,0.786]
[1744350190087,12.9261,1547.5,1547.2,7.24915]
[1744350190288,12.9261,1547.5,1547.3,0.60001505]
[1744350190514,19.38841,1547.5,1547.3,0.60001505]
[1744350191079,12.9261,1547.5,1547.3,0.60001505]
[1744350191388,6.464,1547.5,1547.3,0.60001505]
[1744350191987,6.464,1547.5,1547.4,6.46245]
[1744350192199,6.464,1547.5,1547.4,0.59921345]
[1744350192402,12.92603,1547.5,1547.4,0.59921345]
[1744350192598,12.92603,1547.5,1547.3,1.43122851]
[1744350192798,12.92603,1547.5,1547.4,0.59903145]
[1744350193009,6.464,1547.5,1547.4,7.06148145]
[1744350193327,6.464,1547.5,1547.4,8.089121]
[1744350193616,13.68223,1547.8,1547.4,8.68788178]
[1744350193814,13.68223,1547.8,1547.4,15.15011178]
[1744350194174,7.22123,1547.8,1547.4,15.15011178]
[1744350194384,13.68224,1547.8,1547.4,8.68787178]
[1744350194998,7.22123,1547.8,1547.4,15.15012178]
[1744350195199,7.22037,1548.0,1547.6,6.46134]
[1744350195399,7.22037,1548.0,1547.7,0.7774]
[1744350195632,7.22037,1548.0,1547.7,1.37414914]
[1744350195832,7.22037,1548.0,1547.7,7.83516914]
[1744350196020,6.45997,1548.0,1547.7,7.83516914]
[1744350196489,6.45997,1548.0,1547.7,2.80380005]
[1744350197311,6.45997,1548.0,1547.7,9.26485005]
[1744350197504,12.92019,1548.0,1547.7,2.80380005]
[1744350197700,6.46078,1547.8,1547.7,0.59674914]
[1744350197923,6.46002,1548.0,1547.7,0.59674914]
[1744350198225,6.46002,1548.0,1547.8,0.59667577]
[1744350198592,6.46002,1548.0,1547.7,6.46116]
[1744350198791,6.46002,1548.0,1547.8,0.59423123]
[1744350199522,6.46002,1548.0,1547.6,13.70023]
[1744350199725,9.46002,1548.0,1547.9,0.59397599]
[1744350199931,9.46002,1548.0,1547.7,1.370023]
[1744350200228,9.46002,1548.0,1547.8,0.5941706]
[1744350201612,6.46055,1547.9,1547.6,0.7774]
[1744350202104,6.46055,1547.9,1547.7,0.59472905]
[1744350202524,6.46055,1547.9,1547.6,0.7774]
[1744350202717,6.46055,1547.9,1547.8,0.59599055]
[1744350202916,6.46055,1547.9,1547.7,0.59636725]
[1744350203218,6.46055,1547.9,1547.8,0.59586921]
[1744350203733,6.46083,1547.8,1547.5,8.75423218]
[1744350204097,6.46083,1547.8,1547.6,0.87542322]
[1744350205430,6.4612,1547.7,1547.4,6.06]
[1744350205599,6.4612,1547.7,1547.4,7.23983]
[1744350206107,6.46232,1547.5,1547.3,6.8374]
[1744350206307,7.22285,1547.4,1547.1,0.7774]
[1744350206518,6.46294,1547.3,1547.1,1.50155]
[1744350206726,6.46294,1547.3,1546.9,6.21785235]
[1744350206727,6.46412,1547.0,1546.9,6.21785235]
[1744350206922,6.46454,1546.9,1546.8,6.21785235]
[1744350207536,7.26154,1546.9,1546.8,6.21785235]
[1744350209096,12.92412,1547.0,1546.8,6.21785235]
[1744350209535,19.38849,1547.0,1546.8,6.21785235]
[1744350209721,19.38849,1547.0,1546.6,7.25678]
[1744350209908,6.46461,1546.9,1546.6,0.7912]
[1744350210233,12.92949,1546.9,1546.6,0.7912]
[1744350211328,6.46461,1546.9,1546.6,0.7912]
[1744350211537,12.92416,1547.0,1546.6,13.72249]
[1744350211693,12.92416,1547.0,1546.6,7.2568]
[1744350211892,19.38853,1547.0,1546.6,8.629097]
[1744350212629,6.4646,1546.9,1546.6,2.163497]
[1744350212838,12.92946,1546.9,1546.6,2.163497]
[1744350213153,6.46499,1546.8,1546.6,0.7912]
[1744350213334,6.46499,1546.8,1546.4,13.2867]
[1744350213533,6.46499,1546.8,1546.4,7.2267]
[1744350213713,12.93019,1546.8,1546.4,7.2267]
[1744350214047,6.46499,1546.8,1546.4,7.20646359]
[1744350214229,6.46455,1546.9,1546.4,2.08694636]
[1744350214412,6.46455,1546.9,1546.5,6.46586]
[1744350214609,6.46455,1546.9,1546.6,6.4657]
[1744350214932,6.46,1547.0,1546.7,7.2256]
[1744350215137,6.46,1547.0,1546.7,7.22553]
[1744350216249,6.46,1547.0,1546.8,0.60295672]
[1744350218704,16.75431,1547.3,1546.8,7.85053539]
[1744350218904,16.75431,1547.3,1546.9,6.46434]
[1744350219124,23.21742,1547.3,1546.9,6.46434]
[1744350219334,6.4633,1547.2,1547.0,0.601929]
[1744350219506,7.11003,1547.1,1547.0,0.601929]
[1744350219841,7.1101,1547.1,1546.7,6.8203]
[1744350220004,12.92672,1547.2,1546.8,6.46491]
[1744350220209,6.46378,1547.1,1546.8,6.46491]
[1744350220614,6.46378,1547.1,1546.7,13.28547]
[1744350221744,6.46427,1547.0,1546.7,6.8203]
[1744350222307,7.24637,1547.0,1546.7,6.8203]
[1744350222508,15.081875,1547.0,1546.7,6.8203]
[1744350222709,8.617385,1547.0,1546.7,6.8203]
[1744350223151,7.24637,1547.0,1546.7,13.28563]
[1744350223342,7.24637,1547.0,1546.7,0.7603]
[1744350223546,13.71073,1547.0,1546.7,0.7603]
[1744350224145,7.24637,1547.0,1546.7,0.7603]
[1744350224349,0.7821,1547.0,1546.7,7.22561]
[1744350225161,7.24546,1547.2,1546.8,12.92963]
[1744350225330,13.70896,1547.2,1546.8,6.46477]
[1744350225526,7.24546,1547.2,1546.8,12.92953]
[1744350225963,13.70895,1547.2,1546.8,6.46476]
[1744350226163,13.70895,1547.2,1546.7,7.22565]
[1744350226164,6.46379,1547.1,1546.7,7.22565]
[1744350226466,12.92774,1547.1,1546.7,7.22565]
[1744350226632,12.92774,1547.1,1546.7,0.7603]
[1744350226633,6.46379,1547.1,1546.7,0.7603]
[1744350226835,6.46429,1547.0,1546.7,0.7603]
[1744350227864,6.46429,1547.0,1546.7,7.22567]
[1744350228067,6.46379,1547.1,1546.8,6.4649]
[1744350228267,12.92379,1547.1,1546.8,6.4649]
[1744350228831,6.46,1547.1,1546.8,6.46476]
[1744350229035,6.46,1547.1,1546.9,6.46438]
[1744350229574,6.46,1547.1,1547.0,7.23632]
[1744350229732,6.46,1547.1,1547.0,8.60639]
[1744350230072,7.2421,1547.4,1547.1,6.46352]
[1744350230371,6.46,1547.4,1547.0,2.14227]
[1744350230532,6.463,1547.3,1547.0,2.14227]
[1744350231028,13.70818,1547.3,1547.0,2.14227]
[1744350231267,7.2451,1547.3,1547.1,0.60029055]
[1744350232353,6.46328,1547.2,1547.1,0.60029055]
[1744350232685,12.92686,1547.2,1546.9,6.06]
[1744350232976,12.92686,1547.2,1547.1,0.5998049]
[1744350233344,12.92686,1547.2,1546.9,6.06]
[1744350233571,12.92686,1547.2,1547.0,0.59993904]
[1744350233772,14.297756,1547.2,1547.0,0.59993904]
[1744350234578,7.834176,1547.2,1547.0,0.59993904]
[1744350234881,6.46328,1547.2,1547.0,0.59993904]
[1744350235577,6.46328,1547.2,1547.1,0.60032076]
[1744350235886,6.46328,1547.2,1546.8,13.70188]
[1744350236090,6.46328,1547.2,1547.1,0.60032076]
[1744350236287,6.46328,1547.2,1546.9,6.46451]
[1744350236584,6.46328,1547.2,1547.0,1.20416009]
[1744350236878,13.70813,1547.3,1547.0,1.20416009]
[1744350237183,13.70812,1547.3,1547.0,0.60063707]
[1744350237391,7.24501,1547.3,1547.0,0.60063707]
[1744350237885,13.70817,1547.3,1547.0,0.60063707]
[1744350238789,12.92601,1547.3,1547.0,1.37283707]